bitfinex/quotes_BTCUSD_20240701
["timestamp","ask_amount","ask_price","bid_price","bid_amount"]
[1719802014807,0.157671,63423.0,63422.0,0.200924]
[1719802015036,0.74383429,63423.0,63422.0,0.200924]
[1719802015211,0.79077206,63423.0,63422.0,0.200924]
[1719802015408,1.14012548,63423.0,63422.0,0.200924]
[1719802015642,1.46546848,63423.0,63422.0,0.000924]
[1719802016007,1.55170514,63423.0,63422.0,0.000924]
[1719802016178,1.58515504,63423.0,63422.0,0.000924]
[1719802016355,1.67993504,63423.0,63422.0,0.001]
[1719802016558,1.58560699,63423.0,63422.0,0.001]
[1719802016755,0.473073,63415.0,63414.0,0.2]
[1719802016959,0.74389329,63415.0,63414.0,0.2]
[1719802017679,1.05927529,63415.0,63414.0,0.2]
[1719802017909,1.05945037,63415.0,63414.0,0.2]
[1719802018424,0.58637737,63415.0,63410.0,0.2]
[1719802018646,0.58637737,63415.0,63404.0,0.2454]
[1719802018647,0.0226,63408.0,63398.0,0.4525]
[1719802018856,0.157731,63399.0,63398.0,0.4525]
[1719802019064,0.157731,63399.0,63396.0,0.6716]
[1719802019065,0.10865639,63399.0,63396.0,0.6716]
[1719802019276,0.10865639,63399.0,63397.0,0.2]
[1719802019277,0.16639039,63398.0,63397.0,0.2]
[1719802019442,0.27099537,63398.0,63397.0,0.2]
[1719802019586,0.74419537,63398.0,63397.0,0.2]
[1719802020000,0.10865639,63398.0,63397.0,0.28130346]
[1719802020220,0.10865639,63398.0,63397.0,0.54110346]
[1719802020423,0.01065639,63398.0,63397.0,0.64237381]
[1719802020622,0.10865639,63398.0,63397.0,0.63237381]
[1719802020910,0.10865639,63398.0,63397.0,0.64237381]
[1719802021188,0.103,63398.0,63397.0,0.64237381]
[1719802021388,0.11172446,63398.0,63397.0,0.64237381]
[1719802021592,0.11172446,63398.0,63397.0,0.63237381]
[1719802021834,0.01172446,63398.0,63397.0,0.63237381]
[1719802022039,0.01172446,63398.0,63397.0,0.35107035]
[1719802022255,0.01372446,63398.0,63397.0,0.2]
[1719802022472,0.00872446,63398.0,63397.0,0.2]
[1719802022845,0.01172446,63398.0,63397.0,0.2]
[1719802023048,0.01172446,63398.0,63396.0,0.6716]
[1719802023269,0.64423703,63397.0,63396.0,0.6716]
[1719802023473,0.74423703,63397.0,63396.0,0.4716]
[1719802023842,0.74423703,63397.0,63396.0,0.6716]
[1719802024047,0.74420271,63397.0,63396.0,0.2]
[1719802024376,0.74420271,63397.0,63392.0,0.2]
[1719802024377,0.315477,63396.0,63392.0,0.2]
[1719802024602,0.157743,63394.0,63393.0,0.2]
[1719802024790,0.10865573,63394.0,63393.0,0.24351]
[1719802024989,0.10865573,63394.0,63393.0,0.04351]
[1719802025191,0.10865573,63394.0,63393.0,0.2]
[1719802026140,0.10868345,63394.0,63393.0,0.2]
[1719802026338,0.10868345,63394.0,63383.0,0.4843212]
[1719802026339,0.473238,63393.0,63392.0,0.2]
[1719802026538,0.157748,63392.0,63391.0,0.2]
[1719802026914,0.74426727,63392.0,63391.0,0.2]
[1719802027661,0.157751,63391.0,63390.0,0.2]
[1719802027896,0.42880104,63391.0,63390.0,0.2]
[1719802028140,0.42880104,63391.0,63390.0,0.199959]
[1719802028312,0.42008998,63391.0,63390.0,0.199959]
[1719802029669,0.42008998,63391.0,63389.0,0.199959]
[1719802029670,0.157753,63390.0,63389.0,0.199959]
[1719802029884,0.42009198,63390.0,63389.0,0.2200473]
[1719802030054,0.42009198,63390.0,63389.0,0.199959]
[1719802030253,0.26233898,63390.0,63388.0,0.199959]
[1719802030452,0.26233898,63390.0,63384.0,0.000924]
[1719802030453,0.157758,63388.0,63385.0,0.199959]
[1719802030663,0.1,63387.0,63386.0,0.199959]
[1719802030992,0.1,63387.0,63386.0,0.25471977]
[1719802031545,0.1,63387.0,63386.0,0.26471977]
[1719802032166,0.1,63387.0,63386.0,0.199959]
[1719802032710,0.1,63387.0,63386.0,0.209959]
[1719802032920,0.101,63387.0,63386.0,0.209959]
[1719802033194,0.001,63387.0,63386.0,0.209959]
[1719802033412,0.002,63387.0,63386.0,0.209959]
[1719802033619,0.002,63387.0,63386.0,0.28935727]
[1719802034179,0.002,63387.0,63386.0,0.27935727]
[1719802036610,0.002,63387.0,63386.0,0.28935727]
[1719802036805,0.002,63387.0,63386.0,0.27935727]
[1719802039081,0.002,63387.0,63386.0,0.207819]
[1719802043261,0.0108179,63387.0,63386.0,0.207819]
[1719802043510,0.002,63387.0,63386.0,0.207819]
[1719802044353,0.01081142,63387.0,63386.0,0.207819]
[1719802045278,0.0107582,63387.0,63386.0,0.207819]
[1719802046842,0.33085818,63387.0,63386.0,0.00786]
[1719802047050,0.43085818,63387.0,63386.0,0.00786]
[1719802047993,0.50445818,63387.0,63386.0,0.00786]
[1719802049756,0.50445818,63387.0,63386.0,0.207819]
[1719802050354,1.14550218,63387.0,63386.0,0.207819]
[1719802050580,1.13550218,63387.0,63386.0,0.00786]
[1719802050984,1.13547067,63387.0,63386.0,0.00786]
[1719802051374,1.14547067,63387.0,63386.0,0.00786]
[1719802051649,1.17228736,63387.0,63386.0,0.00786]
[1719802051810,1.20630081,63387.0,63386.0,0.00786]
[1719802052598,1.20430081,63387.0,63386.0,0.00786]
[1719802053727,1.19430081,63387.0,63386.0,0.00786]
[1719802053943,1.12070081,63387.0,63386.0,0.00786]
[1719802054143,1.20430081,63387.0,63386.0,0.00786]
[1719802054957,1.16875743,63387.0,63386.0,0.00786]
[1719802055159,1.20423162,63387.0,63386.0,0.00786]
[1719802055364,1.51975362,63387.0,63386.0,0.00786]
[1719802055614,1.61453362,63387.0,63386.0,0.00786]
[1719802056512,2.50507296,63387.0,63386.0,0.00786]
[1719802056715,2.41827962,63387.0,63386.0,0.00786]
[1719802056876,2.47469486,63387.0,63386.0,0.00786]
[1719802057280,2.79028355,63387.0,63386.0,0.00786]
[1719802057483,2.79028355,63387.0,63386.0,0.008784]
[1719802057697,2.75474267,63387.0,63386.0,0.008784]
[1719802057897,2.69386401,63387.0,63386.0,0.008784]
[1719802058110,2.69986401,63387.0,63386.0,0.008784]
[1719802058311,1.55412777,63387.0,63386.0,0.008784]
[1719802058505,1.62772777,63387.0,63386.0,0.008784]
[1719802059325,1.54412777,63387.0,63386.0,0.008784]
[1719802059527,1.62772777,63387.0,63386.0,0.008784]
[1719802059781,0.34502077,63387.0,63386.0,0.138784]
[1719802059928,0.29171872,63387.0,63386.0,0.27242692]
[1719802060129,0.12937974,63387.0,63386.0,0.27242692]
[1719802060306,0.09536629,63387.0,63386.0,0.26242692]
[1719802060510,0.09536629,63387.0,63386.0,0.246184]
[1719802060511,0.02176629,63387.0,63386.0,0.246184]
[1719802061122,0.02176629,63387.0,63386.0,0.456143]
[1719802061527,0.01476629,63387.0,63386.0,0.456143]
[1719802061724,0.01476629,63387.0,63386.0,0.446143]
[1719802062027,0.01576629,63387.0,63386.0,0.52702967]
[1719802062424,0.00876629,63387.0,63386.0,0.52702967]
[1719802062626,0.00084,63390.0,63389.0,0.01]
[1719802062831,0.00936491,63390.0,63387.0,0.199959]
[1719802063029,0.00936491,63390.0,63387.0,0.209959]
[1719802063030,0.00852491,63389.0,63387.0,0.209959]
[1719802063237,0.00084,63390.0,63388.0,0.01]
[1719802063450,0.00852527,63389.0,63388.0,0.01]
[1719802063677,0.00852527,63389.0,63388.0,0.06406749]
[1719802063882,0.00852527,63389.0,63388.0,0.2583]
[1719802064285,0.00852527,63389.0,63388.0,0.2483]
[1719802064945,0.00852527,63389.0,63388.0,0.2583]
[1719802065212,0.01152527,63389.0,63388.0,0.2583]
[1719802066378,0.003,63389.0,63388.0,0.2583]
[1719802066578,0.003,63389.0,63388.0,0.2483]
[1719802066856,0.01146158,63389.0,63388.0,0.2583]
[1719802067029,0.01146158,63389.0,63388.0,0.32214582]
[1719802067379,0.01146158,63389.0,63388.0,0.31214582]
[1719802068344,0.01146158,63389.0,63388.0,0.2483]
[1719802068748,0.01146158,63389.0,63388.0,0.2583]
[1719802069751,0.01146158,63389.0,63388.0,0.2483]
[1719802069752,0.01145421,63389.0,63388.0,0.2483]
[1719802070110,0.003,63389.0,63388.0,0.2583]
[1719802070458,0.01145256,63389.0,63388.0,0.2583]
[1719802071245,0.01145256,63389.0,63388.0,0.2483]
[1719802071438,0.01145256,63389.0,63388.0,0.2583]
[1719802071644,0.01145256,63389.0,63388.0,0.2483]
[1719802072475,0.01145256,63389.0,63388.0,0.30636882]
[1719802072872,0.01145256,63389.0,63388.0,0.29636882]
[1719802072873,0.01143686,63389.0,63388.0,0.29636882]
[1719802073054,0.01143686,63389.0,63388.0,0.30636882]
[1719802074190,0.01143686,63389.0,63388.0,0.30952376]
[1719802074392,0.01143686,63389.0,63388.0,0.50948276]
[1719802074980,0.01143686,63389.0,63388.0,0.98275776]
[1719802075379,0.003,63389.0,63388.0,1.29511982]
[1719802075795,0.003,63389.0,63388.0,0.97960282]
[1719802076775,0.002,63389.0,63388.0,0.97960282]
[1719802077136,0.00084,63390.0,63389.0,0.367715]
[1719802077378,0.00084,63390.0,63389.0,0.99913814]
[1719802077634,0.00084,63390.0,63389.0,1.11333814]
[1719802079990,0.00184,63390.0,63389.0,1.11333814]
[1719802080397,0.00084,63390.0,63389.0,1.11333814]
[1719802080684,0.00084,63390.0,63389.0,0.71652268]
[1719802081053,0.00084,63390.0,63389.0,0.450859]
[1719802081213,0.00084,63390.0,63389.0,0.199959]
[1719802081458,0.00938423,63390.0,63389.0,0.199959]
[1719802081904,0.08298423,63390.0,63389.0,0.199959]
[1719802083223,0.08298423,63390.0,63387.0,0.199959]
[1719802083224,0.18298423,63390.0,63387.0,0.199959]
[1719802083362,0.16630023,63389.0,63388.0,0.199959]
[1719802083584,0.33990023,63389.0,63388.0,0.199959]
[1719802083783,0.45030023,63389.0,63388.0,0.199959]
[1719802084256,0.45020702,63389.0,63388.0,0.199959]
[1719802084454,0.45020702,63389.0,63388.0,0.001]
[1719802084455,0.46020702,63389.0,63388.0,0.001]
[1719802084655,0.441756,63389.0,63388.0,0.02333882]
[1719802084856,0.45022032,63389.0,63388.0,0.02333882]
[1719802085294,1.2535833,63389.0,63388.0,0.001]
[1719802085495,2.62662428,63389.0,63388.0,0.001]
[1719802085667,2.6268692,63389.0,63388.0,0.001]
[1719802085874,2.44285531,63389.0,63388.0,0.001]
[1719802086014,2.16339651,63389.0,63388.0,0.001]
[1719802086210,0.26260497,63389.0,63388.0,0.001]
[1719802086410,0.35303953,63389.0,63388.0,0.001]
[1719802086614,0.10846432,63389.0,63388.0,0.03714327]
[1719802086864,0.20146432,63389.0,63388.0,0.03714327]
[1719802087034,0.29246432,63389.0,63388.0,0.03714327]
[1719802087235,0.29246432,63389.0,63388.0,0.001]
[1719802087440,0.3015128,63389.0,63386.0,0.255484]
[1719802087738,0.1085128,63388.0,63387.0,0.01]
[1719802089208,0.1085128,63388.0,63386.0,0.265484]
[1719802089416,0.105,63388.0,63387.0,0.01]
[1719802089618,0.105,63388.0,63386.0,0.255484]
[1719802089619,0.11350185,63388.0,63386.0,0.255484]
[1719802089837,0.00850185,63387.0,63386.0,0.008784]
[1719802090371,0.0351247,63387.0,63386.0,0.000924]
[1719802090910,0.07111569,63387.0,63386.0,0.000924]
[1719802091284,0.70673767,63387.0,63386.0,0.000924]
[1719802091635,1.20145121,63387.0,63386.0,0.000924]
[1719802091838,1.20545121,63387.0,63386.0,0.000924]
[1719802092041,1.18305121,63387.0,63386.0,0.000924]
[1719802092386,1.49457321,63387.0,63386.0,0.000924]
[1719802092587,1.50157321,63387.0,63386.0,0.000924]
[1719802092907,1.45278167,63387.0,63386.0,0.000924]
[1719802093865,1.55357641,63387.0,63386.0,0.000924]
[1719802094038,1.55359313,63387.0,63386.0,0.000924]
[1719802096280,1.60035893,63387.0,63386.0,0.000924]
[1719802096702,1.59187038,63387.0,63386.0,0.000924]
[1719802096930,1.6002875,63387.0,63386.0,0.000924]
[1719802098008,2.1004125,63387.0,63386.0,0.000924]
[1719802098209,2.05364707,63387.0,63386.0,0.000924]
[1719802099237,2.01764707,63387.0,63386.0,0.000924]
[1719802099408,1.91231107,63387.0,63386.0,0.000924]
[1719802099814,1.91230609,63387.0,63386.0,0.000924]
[1719802100025,1.93298911,63387.0,63386.0,0.000924]
[1719802100419,1.57420011,63387.0,63386.0,0.000924]
[1719802100627,2.07099411,63387.0,63386.0,0.000924]
[1719802100932,1.57420011,63387.0,63386.0,0.000924]
[1719802101138,1.62095466,63387.0,63386.0,0.000924]
[1719802101755,1.77895466,63387.0,63386.0,0.000924]
[1719802101958,1.62095466,63387.0,63386.0,0.000924]
[1719802102158,1.57420011,63387.0,63386.0,0.000924]
[1719802102362,0.41172725,63387.0,63386.0,0.02237682]
[1719802102563,0.3384277,63387.0,63386.0,0.02237682]
[1719802102761,0.30443671,63387.0,63386.0,0.02237682]
[1719802102973,0.296022,63387.0,63386.0,0.02237682]
[1719802103153,0.30442903,63387.0,63386.0,0.02237682]
[1719802103349,0.30442903,63387.0,63386.0,0.000924]
[1719802105490,0.157757,63389.0,63386.0,0.000924]
[1719802105959,0.20450431,63389.0,63386.0,0.000924]
[1719802106318,0.18325858,63388.0,63386.0,0.000924]
[1719802106553,0.157759,63388.0,63386.0,0.000924]
[1719802106749,0.157759,63388.0,63387.0,0.04467282]
[1719802106927,0.18326873,63388.0,63387.0,0.04467282]
[1719802107541,0.28326873,63388.0,63387.0,0.04467282]
[1719802107743,0.29126873,63388.0,63387.0,0.04467282]
[1719802107915,0.61678573,63388.0,63387.0,0.04467282]
[1719802108119,0.64275635,63388.0,63387.0,0.04467282]
[1719802108370,0.798805,63387.0,63386.0,0.001924]
[1719802108700,0.798805,63387.0,63386.0,0.000924]
[1719802108701,1.08665371,63387.0,63386.0,0.000924]
[1719802109261,1.08664878,63387.0,63386.0,0.000924]
[1719802109462,1.67182533,63387.0,63386.0,0.000924]
[1719802109708,1.72917264,63387.0,63386.0,0.000924]
[1719802109925,1.65904078,63387.0,63386.0,0.000924]
[1719802110125,1.75254992,63387.0,63386.0,0.000924]
[1719802110333,1.75254992,63387.0,63378.0,0.009251]
[1719802110334,1.231263,63379.0,63378.0,0.009251]
[1719802110531,0.578294,63372.0,63371.0,0.4716]
[1719802110740,0.578294,63372.0,63371.0,0.29486319]
[1719802110741,1.37182498,63372.0,63371.0,0.29486319]
[1719802110906,2.63007565,63372.0,63371.0,0.29486319]
[1719802111112,2.66404406,63372.0,63371.0,0.29486319]
[1719802111308,2.73415166,63372.0,63371.0,0.29486319]
[1719802111535,2.66404406,63372.0,63371.0,0.29486319]
[1719802111733,2.46404406,63372.0,63371.0,0.29586319]
[1719802111895,2.60109266,63372.0,63371.0,0.29586319]
[1719802112094,2.53098506,63372.0,63371.0,0.29586319]
[1719802112358,2.61412224,63372.0,63371.0,0.29686319]
[1719802112556,2.61412224,63372.0,63358.0,0.01320045]
[1719802112557,0.01,63365.0,63358.0,0.01320045]
[1719802112881,0.799152,63359.0,63358.0,0.01320045]
[1719802113022,1.073152,63359.0,63358.0,0.01320045]
[1719802113228,1.65605198,63359.0,63358.0,0.01320045]
[1719802113425,1.34039098,63359.0,63358.0,0.009262]
[1719802114839,1.34239098,63359.0,63358.0,0.009262]
[1719802115042,1.33139098,63359.0,63358.0,0.004262]
[1719802115260,1.33039098,63359.0,63358.0,0.004262]
[1719802115468,1.34796491,63359.0,63358.0,0.004262]
[1719802115628,1.33796491,63359.0,63358.0,0.004262]
[1719802115833,1.34796491,63359.0,63358.0,0.004262]
[1719802116568,1.33796491,63359.0,63358.0,0.004262]
[1719802116732,1.02230391,63359.0,63358.0,0.004262]
[1719802117390,0.10757393,63359.0,63358.0,0.004262]
[1719802117532,0.00757393,63359.0,63358.0,0.0164182]
[1719802118565,0.257821,63363.0,63358.0,0.0164182]
[1719802118770,0.16987956,63362.0,63358.0,0.014262]
[1719802119039,0.01,63370.0,63358.0,0.014262]
[1719802119040,0.02888251,63372.0,63371.0,0.01]
[1719802119205,0.157784,63378.0,63375.0,0.1073]
[1719802119463,0.16533109,63377.0,63375.0,0.1073]
[1719802119638,0.16533109,63377.0,63376.0,0.01173]
[1719802119639,0.157786,63377.0,63376.0,0.01173]
[1719802119839,0.34932651,63377.0,63376.0,0.01173]
[1719802120059,0.34932651,63377.0,63375.0,0.1073]
[1719802120357,0.00754051,63376.0,63375.0,0.1073]
[1719802120810,0.00754051,63376.0,63375.0,0.1173]
[1719802121423,0.10754051,63376.0,63375.0,0.1173]
[1719802121641,0.11646087,63376.0,63375.0,0.11903]
[1719802121811,0.11646087,63376.0,63375.0,0.12903]
[1719802122262,0.11646087,63376.0,63375.0,0.11903]
[1719802122464,0.11646087,63376.0,63375.0,0.1173]
[1719802122584,0.11646087,63376.0,63375.0,0.1073]
[1719802122781,0.12646087,63376.0,63375.0,0.1073]
[1719802123002,0.12646087,63376.0,63375.0,0.1173]
[1719802123942,0.02646087,63376.0,63375.0,0.2539]
[1719802124164,0.02524926,63376.0,63375.0,0.3002859]
[1719802124570,0.019,63376.0,63375.0,0.3002859]
[1719802128184,0.019,63376.0,63375.0,0.2539]
[1719802132415,0.019,63376.0,63375.0,0.463859]
[1719802132785,0.019,63376.0,63375.0,0.621649]
[1719802133116,0.019,63376.0,63375.0,1.252811]
[1719802133285,0.04667526,63396.0,63395.0,0.01]
[1719802133509,0.04667526,63396.0,63394.0,0.01]
[1719802133510,0.0339593,63396.0,63394.0,0.01]
[1719802133647,0.03395945,63397.0,63394.0,0.01]
[1719802133861,0.16233898,63397.0,63395.0,0.01]
[1719802134062,0.00763316,63396.0,63391.0,0.1087]
[1719802134280,0.00763316,63396.0,63391.0,0.1532159]
[1719802134281,0.184,63392.0,63391.0,0.1532159]
[1719802134481,0.19163316,63392.0,63391.0,0.1632159]
[1719802134869,0.29163316,63392.0,63391.0,0.1632159]
[1719802136074,0.29163316,63392.0,63391.0,0.0545159]
[1719802136248,0.29163316,63392.0,63391.0,0.0445159]
[1719802136457,0.30063316,63392.0,63391.0,0.011]
[1719802136658,0.30063316,63392.0,63391.0,0.001]
[1719802136897,0.30063316,63392.0,63391.0,0.011]
[1719802137087,0.29160423,63392.0,63391.0,0.01]
[1719802137227,0.29960423,63392.0,63391.0,0.001]
[1719802137430,0.30660423,63392.0,63391.0,0.002]
[1719802137636,0.30660423,63392.0,63391.0,0.012]
[1719802138051,0.30660423,63392.0,63391.0,0.002]
[1719802138257,0.30660423,63392.0,63391.0,0.012]
[1719802138458,0.30660423,63392.0,63391.0,0.0560359]
[1719802142499,0.30656916,63392.0,63391.0,0.0560359]
[1719802142916,0.30656751,63392.0,63391.0,0.0560359]
[1719802144591,0.12256751,63392.0,63391.0,0.0560359]
[1719802144763,0.02256751,63392.0,63391.0,0.0560359]
[1719802145526,0.02261194,63392.0,63391.0,0.0560359]
[1719802145710,0.02261183,63392.0,63391.0,0.0560359]
[1719802147323,0.02261183,63392.0,63391.0,0.012]
[1719802148668,0.015,63392.0,63391.0,0.012]
[1719802148914,0.02277362,63392.0,63391.0,0.012]
[1719802151648,0.02277362,63392.0,63391.0,0.325059]
[1719802151873,0.015,63392.0,63391.0,0.325059]
[1719802152108,0.02276042,63392.0,63391.0,0.42567315]
[1719802152657,0.015,63392.0,63391.0,0.42567315]
[1719802153548,0.02274482,63392.0,63391.0,0.42567315]
[1719802154984,0.02273217,63392.0,63391.0,0.42567315]
[1719802155192,0.02273217,63392.0,63391.0,0.56167315]
[1719802155394,0.02357217,63392.0,63391.0,0.56167315]
[1719802156466,0.01584,63392.0,63391.0,0.71942415]
[1719802157539,0.01584,63392.0,63391.0,1.03492615]
[1719802157751,0.00884,63392.0,63391.0,1.03392615]
[1719802158123,0.00984,63392.0,63391.0,1.04392615]
[1719802159065,0.00184,63392.0,63391.0,1.04292615]
[1719802159503,0.00184,63392.0,63391.0,1.04392615]
[1719802159504,0.00884,63392.0,63391.0,1.04392615]
[1719802159948,0.00184,63392.0,63391.0,1.04292615]
[1719802160149,0.00184,63392.0,63391.0,1.05292615]
[1719802160150,0.00284,63392.0,63391.0,1.05292615]
[1719802160289,0.00184,63392.0,63391.0,1.04292615]
[1719802160686,0.00284,63392.0,63391.0,1.05292615]
[1719802161295,0.00184,63392.0,63391.0,1.04292615]
[1719802162532,0.00184,63392.0,63391.0,1.05292615]
[1719802162694,0.00284,63392.0,63391.0,1.05292615]
[1719802168695,0.00184,63392.0,63391.0,1.04292615]
[1719802169197,0.00284,63392.0,63391.0,1.05292615]
[1719802169963,0.00184,63392.0,63391.0,1.04292615]
[1719802170289,0.00284,63392.0,63391.0,1.44192815]
[1719802170492,0.00284,63392.0,63391.0,2.11976913]
[1719802170667,0.0396,63417.0,63416.0,0.01]
[1719802170870,0.08111422,63417.0,63416.0,0.01]
[1719802171273,0.04730013,63417.0,63416.0,0.01]
[1719802171878,0.02170013,63417.0,63416.0,0.011]
[1719802172324,0.02170013,63417.0,63416.0,0.012]
[1719802172325,0.03570013,63417.0,63416.0,0.012]
[1719802172696,0.02170013,63417.0,63416.0,0.011]
[1719802172896,0.04752269,63417.0,63416.0,0.011]
[1719802173389,0.04752269,63417.0,63416.0,0.0330959]
[1719802174200,0.02062564,63417.0,63416.0,0.0330959]
[1719802174419,0.02662564,63417.0,63416.0,0.0340959]
[1719802174638,0.02662564,63417.0,63416.0,0.2340549]
[1719802174841,0.02662564,63417.0,63416.0,0.2440549]
[1719802175048,0.02662564,63417.0,63416.0,0.4835549]
[1719802175241,0.02662564,63417.0,63416.0,0.9566199]
[1719802175447,0.02666093,63417.0,63416.0,0.9566199]
[1719802175617,0.02666093,63417.0,63416.0,0.6412429]
[1719802176372,0.02666093,63417.0,63416.0,0.6402429]
[1719802176373,0.006,63417.0,63416.0,0.6402429]
[1719802176594,0.011,63417.0,63416.0,0.6402429]
[1719802176953,0.02566504,63419.0,63417.0,0.01]
[1719802177154,0.0033,63420.0,63419.0,0.01]
[1719802177380,0.0033,63420.0,63419.0,0.209959]
[1719802177381,0.01093418,63420.0,63419.0,0.209959]
[1719802178803,0.01093418,63420.0,63419.0,0.211959]
[1719802180049,0.01093396,63420.0,63419.0,0.213959]
[1719802180218,0.01093396,63420.0,63419.0,0.23768155]
[1719802180457,0.03708058,63420.0,63419.0,0.23768155]
[1719802180576,0.01093126,63420.0,63419.0,0.23768155]
[1719802183022,0.0033,63420.0,63419.0,0.23768155]
[1719802183263,0.01091811,63420.0,63419.0,0.23768155]
[1719802186190,0.0109141,63420.0,63419.0,0.23768155]
[1719802186390,0.0109141,63420.0,63419.0,0.213959]
[1719802187010,0.0117541,63420.0,63419.0,0.213959]
[1719802188272,0.0117541,63420.0,63419.0,0.328959]
[1719802188642,0.0117541,63420.0,63419.0,0.326959]
[1719802188844,0.0117541,63420.0,63419.0,0.211959]
[1719802189071,0.0137541,63420.0,63419.0,0.209959]
[1719802189394,0.01576081,63420.0,63419.0,0.209959]
[1719802189944,0.01576081,63420.0,63419.0,0.2424549]
[1719802190158,0.01576081,63420.0,63419.0,0.3814549]
[1719802190955,0.01576081,63420.0,63419.0,0.3914549]
[1719802191156,0.01576081,63420.0,63419.0,0.4952549]
[1719802191645,0.01176081,63420.0,63419.0,0.4952549]
[1719802191841,0.00614,63420.0,63419.0,0.4952549]
[1719802192140,0.00814,63420.0,63419.0,0.4952549]
[1719802192540,0.00814,63420.0,63419.0,0.5687549]
[1719802192818,0.00814,63420.0,63419.0,0.7264359]
[1719802193432,0.00814,63420.0,63419.0,0.9264359]
[1719802193635,0.00614,63420.0,63419.0,0.9264359]
[1719802193850,0.00614,63420.0,63419.0,0.7264359]
[1719802194055,0.00614,63420.0,63419.0,0.9284359]
[1719802194263,0.00614,63420.0,63419.0,1.0437979]
[1719802194417,0.00614,63420.0,63419.0,1.0417979]
[1719802194617,0.00414,63420.0,63419.0,1.0417979]
[1719802194852,0.00414,63420.0,63419.0,1.0557979]
[1719802195256,0.00414,63420.0,63419.0,1.0527979]
[1719802195462,0.00414,63420.0,63419.0,1.0647979]
[1719802195843,0.00414,63420.0,63419.0,0.9912979]
[1719802200330,0.00414,63420.0,63419.0,1.66899888]
[1719802200731,0.09088,63439.0,63429.0,0.01]
[1719802201059,0.03322797,63438.0,63433.0,0.01]
[1719802201280,0.315285,63435.0,63430.0,0.01]
[1719802201480,0.0229,63433.0,63430.0,0.01]
[1719802201675,0.16520631,63432.0,63430.0,0.01]
[1719802201812,0.00755731,63431.0,63430.0,0.01]
[1719802202017,0.00755731,63431.0,63429.0,0.011]
[1719802202256,0.00755731,63431.0,63430.0,0.01]
[1719802202797,0.00752637,63432.0,63431.0,0.01]
[1719802202999,0.280546,63433.0,63432.0,0.0310959]
[1719802203299,0.31371312,63433.0,63432.0,0.0310959]
[1719802204296,0.28814049,63433.0,63432.0,0.0310959]
[1719802204461,0.31384645,63433.0,63432.0,0.0310959]
[1719802204670,0.280546,63433.0,63432.0,0.0310959]
[1719802204876,0.31881496,63433.0,63431.0,0.01]
[1719802205053,0.03326896,63432.0,63431.0,0.01]
[1719802205256,0.03326896,63432.0,63429.0,0.01]
[1719802205257,0.06709176,63432.0,63429.0,0.01]
[1719802205481,0.0075745,63431.0,63430.0,0.01]
[1719802205679,0.290547,63433.0,63431.0,0.01]
[1719802205879,0.06700168,63432.0,63429.0,0.0309959]
[1719802206101,0.00752871,63431.0,63429.0,0.0309959]
[1719802206319,0.00752871,63430.0,63429.0,0.0309959]
[1719802206607,0.00752871,63430.0,63429.0,0.01]
[1719802206964,0.03317831,63432.0,63429.0,0.01]
[1719802207337,0.00753054,63431.0,63429.0,0.01]
[1719802207539,0.00753096,63430.0,63429.0,0.01]
[1719802208099,0.00853096,63430.0,63429.0,0.01]
[1719802208278,0.00853096,63430.0,63429.0,0.0309959]
[1719802209070,0.00953096,63430.0,63429.0,0.0309959]
[1719802209272,0.04336235,63430.0,63429.0,0.0309959]
[1719802210098,0.00953096,63430.0,63429.0,0.0309959]
[1719802210317,0.04336521,63430.0,63429.0,0.0309959]
[1719802210503,0.04341001,63430.0,63429.0,0.0309959]
[1719802211749,0.20106401,63430.0,63428.0,0.199959]
[1719802211956,0.10757576,63429.0,63428.0,0.209959]
[1719802213512,0.10757576,63429.0,63428.0,0.321459]
[1719802213735,0.10761098,63429.0,63428.0,0.321459]
[1719802215021,0.10761098,63429.0,63428.0,0.331459]
[1719802215222,0.10761098,63429.0,63428.0,0.51627525]
[1719802215223,0.00761098,63429.0,63428.0,0.51627525]
[1719802215468,0.02602771,63439.0,63437.0,0.209959]
[1719802215817,0.02602771,63439.0,63428.0,0.29631625]
[1719802215818,0.00842,63440.0,63439.0,0.01]
[1719802215987,0.04224424,63440.0,63439.0,0.0309959]
[1719802216127,0.0754874,63440.0,63439.0,0.0309959]
[1719802216788,0.07548605,63440.0,63439.0,0.0309959]
[1719802216989,0.07548605,63440.0,63439.0,0.0319959]
[1719802216990,0.10037896,63440.0,63439.0,0.0319959]
[1719802217239,0.10637787,63440.0,63439.0,0.0319959]
[1719802217442,0.10637787,63440.0,63439.0,0.0329959]
[1719802217443,0.21137787,63440.0,63439.0,0.0329959]
[1719802218059,0.21137787,63440.0,63439.0,0.0429959]
[1719802218183,0.15187192,63440.0,63439.0,0.2429549]
[1719802218848,0.02697901,63440.0,63439.0,0.5780859]
[1719802219043,0.02697901,63440.0,63439.0,1.0250489]
[1719802219247,0.01942,63440.0,63439.0,0.9516489]
[1719802219673,0.01942,63440.0,63439.0,0.9506489]
[1719802219674,0.01442,63440.0,63439.0,0.9506489]
[1719802219830,0.00842,63440.0,63439.0,0.4667549]
[1719802220040,0.0211337,63440.0,63439.0,0.6253859]
[1719802220248,0.0231337,63440.0,63439.0,0.4677549]
[1719802220472,0.0231337,63440.0,63439.0,0.2309549]
[1719802220473,0.0161337,63440.0,63439.0,0.2309549]
[1719802220817,0.0161337,63440.0,63439.0,0.2409549]
[1719802221259,0.0161337,63440.0,63439.0,0.2309549]
[1719802221814,0.0161337,63440.0,63439.0,0.2419549]
[1719802222058,0.0161337,63440.0,63439.0,0.3887549]
[1719802222209,0.0161337,63440.0,63439.0,0.3777549]
[1719802222641,0.0161337,63440.0,63439.0,0.3707549]
[1719802222848,0.01612175,63440.0,63439.0,0.4753549]
[1719802223066,0.01612175,63440.0,63439.0,0.4853549]
[1719802224369,0.01612175,63440.0,63439.0,0.4753549]
[1719802224569,0.00842,63440.0,63439.0,0.4853549]
[1719802224768,0.01610502,63440.0,63439.0,0.4773549]
[1719802224971,0.00842,63440.0,63439.0,0.4773549]
[1719802225218,0.01608724,63440.0,63439.0,0.4773549]
[1719802225395,0.00842,63440.0,63439.0,0.4773549]
[1719802225598,0.01608711,63440.0,63439.0,0.4773549]
[1719802225879,0.01608711,63440.0,63439.0,0.4873549]